bitfinex/quotes_ETHUSD_20250616
["timestamp","ask_amount","ask_price","bid_price","bid_amount"]
[1750110083348,0.61370003,2650.5,2650.3,3.77306903]
[1750110083544,0.61370003,2650.5,2650.3,6.421]
[1750110083741,0.61370003,2650.5,2650.4,3.77301539]
[1750110084141,0.61370003,2650.5,2650.4,3.81074008]
[1750110085158,0.61370003,2650.5,2650.4,4.57744008]
[1750110086152,0.61370003,2650.5,2650.4,6.0168728]
[1750110090726,0.61370003,2650.5,2650.4,6.05459403]
[1750110091015,0.61370003,2650.5,2650.4,13.67547243]
[1750110091218,0.61370003,2650.5,2650.4,13.6377512]
[1750110092673,0.61370003,2650.5,2650.4,24.1877512]
[1750110100220,2.930731,2650.8,2650.4,24.1877512]
[1750110100221,2.930731,2650.8,2650.7,11.94346677]
[1750110100517,2.930731,2650.8,2650.7,22.48618383]
[1750110100817,0.02,2650.9,2650.7,22.48618383]
[1750110100818,0.02,2650.9,2650.8,5.13654605]
[1750110101017,0.8128,2650.9,2650.4,1.47715741]
[1750110101182,7.6208784,2650.6,2650.0,3.7735849]
[1750110101386,1.55488784,2650.5,2650.1,3.77334588]
[1750110101605,0.7928,2650.4,2650.2,6.407]
[1750110101813,0.7928,2650.4,2650.3,3.77315775]
[1750110102017,0.7928,2650.4,2650.3,6.407]
[1750110102223,0.7928,2650.4,2650.3,10.18015775]
[1750110103527,0.7928,2650.4,2650.3,10.17915775]
[1750110104086,0.7928,2650.4,2650.3,3.77315775]
[1750110104290,0.7928,2650.4,2650.3,10.17815775]
[1750110105814,0.7928,2650.4,2650.3,3.77315775]
[1750110106020,0.7928,2650.4,2650.3,10.17915775]
[1750110109841,0.7928,2650.4,2650.3,3.77315775]
[1750110110003,0.7928,2650.4,2650.3,10.17715775]
[1750110110429,0.7928,2650.4,2650.3,10.17615775]
[1750110112042,0.7928,2650.4,2650.3,3.77315775]
[1750110112641,0.7928,2650.4,2650.3,10.17615775]
[1750110114440,0.7928,2650.4,2650.0,3.7735849]
[1750110114640,0.7928,2650.4,2649.1,1.74]
[1750110114641,0.7978,2650.1,2649.1,1.74]
[1750110114842,0.7978,2649.9,2649.6,3.77401994]
[1750110115051,0.7978,2649.9,2649.6,10.17601994]
[1750110115343,0.7978,2649.9,2649.7,3.77400075]
[1750110115707,0.7978,2649.9,2649.7,10.17500075]
[1750110116336,0.7978,2649.9,2649.8,3.77386972]
[1750110116519,0.7978,2649.9,2649.7,6.401]
[1750110117108,0.7978,2649.9,2649.7,10.17599404]
[1750110127071,0.7978,2649.9,2649.7,10.17199404]
[1750110128373,0.7978,2649.9,2649.7,6.398]
[1750110128680,0.8302,2649.4,2648.9,3.77502789]
[1750110128977,0.8302,2648.9,2648.4,1.47833762]
[1750110129130,0.8302,2648.9,2648.5,10.17271193]
[1750110129334,0.8302,2648.9,2648.5,6.397]
[1750110129534,0.8302,2648.9,2648.6,6.397]
[1750110129730,0.8302,2648.9,2648.3,3.77594756]
[1750110129731,0.8302,2648.9,2648.7,6.397]
[1750110129982,0.8302,2648.9,2648.7,6.396]
[1750110131051,0.8302,2648.9,2648.7,7.41316993]
[1750110131351,11.99960944,2649.3,2649.2,3.77472444]
[1750110131557,11.99960944,2649.3,2649.2,10.17072444]
[1750110132376,1.99960944,2649.3,2649.2,10.17072444]
[1750110134480,1.99960944,2649.3,2649.2,6.396]
[1750110136275,1.99960944,2649.3,2648.7,1.01716993]
[1750110136473,0.7877,2648.9,2648.4,10.16979271]
[1750110136684,0.7877,2648.9,2648.5,3.77567367]
[1750110137038,0.7877,2648.9,2648.6,6.394]
[1750110139148,4.56288315,2648.9,2648.6,6.394]
[1750110139656,0.7877,2648.9,2648.7,10.16934314]
[1750110139840,1.99960944,2649.3,2648.7,10.16937811]
[1750110140178,1.99960944,2649.3,2648.8,0.03774943]
[1750110140366,1.99960944,2649.3,2649.2,3.77472444]
[1750110140571,1.99960944,2649.3,2649.2,10.16772444]
[1750110141674,1.99960944,2649.3,2649.2,10.88498647]
[1750110141867,1.99960944,2649.3,2649.2,7.11026203]
[1750110142185,1.99960944,2649.3,2649.2,6.393]
[1750110148688,1.99960944,2649.3,2649.0,3.77494367]
[1750110148990,8.4322784,2649.2,2648.2,0.8281]
[1750110149192,4.58672046,2648.8,2648.4,3.7758518]
[1750110149487,12.20759886,2648.8,2648.5,6.389]
[1750110149688,8.4322784,2648.8,2648.5,6.389]
[1750110150664,12.20762262,2648.8,2648.4,3.77585223]
[1750110150863,8.4322784,2648.8,2648.5,6.389]
[1750110155891,8.4322784,2648.8,2648.5,10.16470044]
[1750110156090,8.4322784,2648.8,2648.5,6.389]
[1750110157383,8.4322784,2648.8,2648.4,3.77578799]
[1750110157590,10.20373078,2648.8,2648.4,10.16178799]
[1750110158911,8.4322784,2648.8,2648.4,10.16178799]
[1750110159531,3.77547504,2648.7,2648.2,3.77606285]
[1750110159807,3.77547504,2648.7,2648.4,6.385]
[1750110162111,8.4322784,2648.8,2648.2,6.385]
[1750110163384,3.77543922,2648.7,2648.3,3.77587592]
[1750110165313,3.77543922,2648.7,2648.2,6.385]
[1750110165314,3.77543922,2648.7,2648.2,10.1590641]
[1750110165516,3.7756196,2648.6,2648.2,3.7760641]
[1750110165753,3.77551973,2648.7,2648.2,10.1580641]
[1750110166084,11.39646415,2648.6,2648.2,3.7760641]
[1750110166283,0.8082,2648.5,2648.2,3.7760641]
[1750110167624,0.8082,2648.5,2648.2,3.77613371]
[1750110167793,4.58392847,2648.5,2648.1,3.7961594]
[1750110168200,4.58392847,2648.5,2648.1,0.02]
[1750110168526,4.58392847,2648.5,2648.1,3.79628076]
[1750110169524,4.58392847,2648.5,2648.1,0.02]
[1750110169729,3.77588104,2648.4,2648.1,0.02]
[1750110170027,4.58398351,2648.5,2648.1,0.02]
[1750110170192,6.34158187,2648.5,2648.1,0.02]
[1750110171805,6.34158187,2648.5,2648.1,3.79629208]
[1750110172115,3.77587327,2648.4,2648.1,0.02]
[1750110172891,3.77601796,2648.3,2648.1,0.02]
[1750110173627,2.56579836,2648.5,2648.1,0.02]
[1750110173804,3.77588111,2648.4,2648.1,0.02]
[1750110175028,6.34164064,2648.5,2648.1,0.02]
[1750110175192,6.34164064,2648.5,2648.1,3.79628088]
[1750110176791,6.34164064,2648.5,2648.1,0.02]
[1750110176990,3.77589622,2648.4,2648.1,0.02]
[1750110179427,6.34158064,2648.5,2648.1,0.02]
[1750110182146,3.77587327,2648.4,2648.1,0.02]
[1750110182341,6.34160576,2648.5,2648.1,0.02]
[1750110182634,2.56579836,2648.5,2648.1,3.79616704]
[1750110182801,6.34152531,2648.5,2648.1,3.79616704]
[1750110183138,6.34152531,2648.5,2648.1,0.02]
[1750110183333,5.53332531,2648.5,2648.1,3.79622693]
[1750110183507,5.49972695,2648.5,2648.1,3.79622693]
[1750110183840,11.724,2648.5,2648.1,3.79622693]
[1750110185638,15.49973166,2648.5,2648.1,3.79622693]
[1750110187340,1.724,2648.5,2648.3,3.77600153]
[1750110187636,0.7935,2648.7,2648.3,3.77600153]
[1750110187637,11.724,2648.7,2648.3,4.59810153]
[1750110188219,11.724,2648.7,2648.3,0.8221]
[1750110188420,11.724,2648.7,2648.3,4.59802365]
[1750110188834,15.49947705,2648.7,2648.3,4.59802365]
[1750110189435,15.49947705,2648.7,2648.3,0.8221]
[1750110190768,15.49947705,2648.7,2648.3,4.59809232]
[1750110192887,15.49951918,2648.7,2648.3,0.8221]
[1750110193174,13.77551918,2648.7,2648.3,0.8221]
[1750110194677,13.77551918,2648.7,2648.3,4.59808262]
[1750110195033,10.0,2648.7,2648.3,4.59808262]
[1750110197269,13.7754618,2648.7,2648.3,4.59808262]
[1750110197633,10.0,2648.7,2648.3,4.59808262]
[1750110198142,13.77544249,2648.7,2648.3,4.59808262]
[1750110198348,10.0,2648.7,2648.3,4.5981071]
[1750110198970,13.77545227,2648.7,2648.3,4.5981071]
[1750110199141,13.77545227,2648.7,2648.3,0.8221]
[1750110204394,3.77559386,2648.6,2648.3,0.8221]
[1750110204758,10.0,2648.7,2648.3,0.8221]
[1750110204990,13.77549691,2648.7,2648.3,0.8221]
[1750110206291,3.77535896,2648.8,2648.3,1.92001497]
[1750110206507,10.0,2648.7,2648.3,5.69596324]
[1750110206995,11.396086,2648.9,2648.5,0.7826]
[1750110206996,3.77523238,2648.9,2648.5,0.7826]
[1750110207374,13.77515229,2648.9,2648.5,4.55828626]
[1750110208489,3.77506979,2649.0,2648.5,4.55828626]
[1750110208696,3.77506979,2649.0,2648.5,0.7826]
[1750110208996,3.77506979,2649.0,2648.5,4.55824296]
[1750110209198,3.77506979,2649.0,2648.5,5.5014444]
[1750110210382,5.48899055,2649.1,2648.6,3.77555587]
[1750110210695,15.48894406,2649.1,2648.5,5.50151712]
[1750110210878,15.48894406,2649.1,2648.6,3.77550282]
[1750110211477,3.77503831,2649.0,2648.5,5.50145435]
[1750110211670,3.77503831,2649.0,2648.6,3.77555435]
[1750110212100,3.77503831,2649.0,2648.5,5.50142774]
[1750110212398,3.77503831,2649.0,2648.6,0.92772371]
[1750110212908,3.77503831,2649.0,2648.6,4.70326159]
[1750110213068,15.48898848,2649.1,2648.6,4.70326159]
[1750110213470,10.0,2649.1,2648.8,0.7916]
[1750110213671,13.39509255,2649.3,2648.8,0.7916]
[1750110213882,10.0,2649.2,2648.8,0.7916]
[1750110214373,10.0,2649.2,2648.8,4.56688235]
[1750110215205,9.62048784,2649.3,2648.9,3.77514344]
[1750110215501,13.39507787,2649.3,2648.9,3.77514091]
[1750110215896,9.62048784,2649.3,2648.9,3.77514091]
[1750110220408,9.62048784,2649.3,2649.0,3.77499407]
[1750110220610,1.99960944,2649.3,2649.1,3.77483757]
[1750110220819,1.99960944,2649.3,2649.2,4.9521082]
[1750110220974,1.99960944,2649.3,2649.2,4.57462444]
[1750110222207,1.99960944,2649.3,2649.2,0.7999]
[1750110222398,1.99960944,2649.3,2649.2,4.57462444]
[1750110223812,1.99960944,2649.3,2649.2,4.57642444]
[1750110227017,1.99960944,2649.3,2648.8,1.56261845]
[1750110227018,9.62048784,2649.3,2648.8,5.33786852]
[1750110227312,9.62048784,2649.3,2648.7,4.57706943]
[1750110227485,3.77488374,2649.1,2648.7,7.1477]
[1750110227686,3.77482417,2649.2,2648.7,0.8017]
[1750110227912,13.77494844,2649.1,2648.7,6.346]
[1750110228082,13.77494844,2649.1,2648.7,6.345]
[1750110228821,13.77494844,2649.1,2648.6,3.77556623]
[1750110229114,13.77494844,2649.1,2648.7,6.345]
[1750110230019,13.77494844,2649.1,2648.6,3.77556623]
[1750110230220,13.77494844,2649.1,2648.7,6.345]
[1750110230221,3.7750118,2649.0,2648.7,6.345]
[1750110230721,10.93714984,2649.0,2648.1,0.02]
[1750110230905,3.77535779,2648.8,2648.3,3.77594504]
[1750110231225,3.77535779,2648.8,2648.3,10.11994504]
[1750110231523,3.77525742,2648.9,2648.4,3.77585283]
[1750110231705,3.77507084,2649.0,2648.5,0.7925]
[1750110232025,3.77496114,2649.1,2648.6,3.77548076]
[1750110232219,3.77488648,2649.1,2648.5,4.56818977]
[1750110232419,3.77488648,2649.1,2648.6,3.7755071]
[1750110233111,3.77493409,2649.1,2648.6,3.775563]
[1750110234002,3.77493409,2649.1,2648.6,3.77557955]
[1750110235289,16.27699695,2649.2,2648.7,3.77539992]
[1750110236431,1.99960944,2649.3,2648.7,7.17534786]
[1750110236609,1.99960944,2649.3,2649.0,3.77498669]
[1750110237502,1.99960944,2649.3,2648.9,4.56357452]
[1750110238109,5.77421149,2649.3,2648.9,10.11607452]
[1750110238417,3.7750761,2649.0,2648.6,6.34]
[1750110238737,3.7750761,2649.0,2648.6,10.11556516]
[1750110239044,13.3950784,2649.3,2648.8,3.77520046]
[1750110239242,13.3950784,2649.3,2648.6,7.81212861]
[1750110239243,9.62048784,2649.3,2648.9,3.77515094]
[1750110239603,1.99960944,2649.3,2649.0,0.8316]
[1750110239807,1.99960944,2649.3,2649.2,3.77472444]
[1750110240947,1.99960944,2649.3,2649.1,3.77478555]
[1750110241251,3.77514452,2649.0,2648.6,1.47212861]
[1750110241560,3.77507985,2649.0,2648.5,3.77572204]
[1750110241700,3.7755207,2648.7,2648.2,3.77607891]
[1750110241897,3.7754342,2648.8,2648.2,3.77606957]
[1750110242133,12.20387833,2648.9,2648.1,3.79628722]
[1750110242328,8.4286784,2648.9,2648.2,4.23257047]
[1750110242540,8.4286784,2648.9,2648.2,0.45643872]
[1750110242740,3.77552848,2648.7,2648.2,4.23257795]
[1750110242957,12.20387988,2648.9,2648.2,0.45643872]
[1750110243240,11.39641444,2648.7,2648.2,6.338]
[1750110243402,3.77571557,2648.6,2648.1,10.13428136]
[1750110243817,8.4286784,2648.9,2648.1,6.358]
[1750110244025,3.77546178,2648.7,2648.2,3.77607483]
[1750110244235,8.4286784,2648.9,2648.2,3.77607483]
[1750110244546,3.77539153,2648.8,2648.2,3.77602478]
[1750110244733,3.77548947,2648.7,2648.2,3.77602478]
[1750110244936,3.77548947,2648.7,2648.2,5.2438752]
[1750110246549,3.77541383,2648.8,2648.3,3.77599884]
[1750110246902,12.20390255,2648.9,2648.4,3.77585172]
[1750110248048,12.86794686,2649.2,2649.1,3.77486693]
[1750110248049,2.86794686,2649.2,2649.1,3.77486693]
[1750110248207,2.86794686,2649.2,2649.1,11.25635362]
[1750110252470,2.86794686,2649.2,2649.1,29.42723202]
[1750110252767,1.703,2650.4,2649.9,0.7675]
[1750110252931,15.47608618,2650.4,2649.9,10.87419823]
[1750110253132,7.6208784,2650.3,2649.9,10.87419823]
[1750110253332,7.6208784,2650.3,2650.0,3.77355518]
[1750110253740,7.6208784,2650.3,2650.0,3.70866872]
[1750110253958,8.4500784,2650.5,2650.1,3.77335973]
[1750110254161,8.4500784,2650.5,2650.2,3.77329829]
[1750110254476,12.2229669,2650.5,2650.0,3.7735219]
[1750110254631,1.703,2650.6,2650.1,4.5409203]
[1750110254632,3.77280431,2650.6,2650.1,4.5409203]
[1750110254832,3.77280431,2650.6,2650.2,6.332]
[1750110255330,3.77284674,2650.6,2650.2,6.332]
[1750110255929,11.39348732,2650.7,2650.2,6.332]
[1750110256133,3.7728815,2650.5,2650.2,6.332]
[1750110256553,3.77296423,2650.5,2650.2,6.332]
[1750110257664,3.77279883,2650.6,2650.2,6.332]
[1750110258172,10.0,2650.6,2650.2,10.10522768]
[1750110258385,10.0,2650.6,2650.2,11.56987554]
[1750110258952,13.77281035,2650.6,2650.2,6.332]
[1750110259448,3.77304063,2650.4,2650.1,6.329]
[1750110259653,4.54821025,2650.5,2650.1,6.329]
[1750110259859,13.77274714,2650.6,2650.1,10.88956683]
[1750110260255,10.0,2650.6,2650.2,3.77327707]
[1750110260459,10.0,2650.6,2650.2,10.10227707]
[1750110260661,13.77273747,2650.6,2650.2,6.329]
[1750110260976,13.77273747,2650.6,2650.2,6.328]
[1750110261775,13.77273747,2650.6,2650.2,10.10128583]
[1750110261976,13.77273747,2650.6,2650.3,1.23547984]
[1750110261977,3.77273747,2650.6,2650.3,1.23547984]
[1750110262151,0.02,2650.9,2650.4,0.7872]
[1750110262348,0.02,2650.9,2650.7,3.77251654]
[1750110262571,0.02,2650.9,2650.2,3.77323665]
[1750110262771,3.77278345,2650.6,2650.1,0.7872]
[1750110262971,0.7753,2650.7,2650.2,6.327]
[1750110263366,3.77279402,2650.6,2650.3,6.327]
[1750110263682,4.54794319,2650.7,2650.4,6.327]
[1750110263885,6.14407539,2650.7,2650.4,6.327]
[1750110264087,6.14413205,2650.7,2650.4,6.327]
[1750110264260,2.3714322,2650.7,2650.4,6.327]
[1750110264857,0.7753,2650.7,2650.4,6.327]
[1750110265056,4.54790057,2650.7,2650.4,6.327]
[1750110268492,0.7753,2650.7,2650.4,6.327]
[1750110268663,4.54789595,2650.7,2650.4,6.325]
[1750110268989,3.77273748,2650.6,2650.2,3.77322583]
[1750110269166,3.77273748,2650.6,2650.4,6.325]
[1750110269493,2.37141966,2650.7,2650.4,6.325]
[1750110270060,1.59611966,2650.7,2650.4,10.09795236]
[1750110270255,10.0,2650.8,2650.4,10.09795236]
[1750110270473,3.77245761,2650.8,2650.4,10.09795236]
[1750110270901,10.7729,2650.9,2650.5,3.77284488]
[1750110271086,0.02,2650.9,2650.7,3.77249441]
[1750110271392,0.02,2650.9,2650.8,3.77244605]
[1750110272213,0.02,2650.9,2650.8,5.95634718]
[1750110272690,0.02,2650.9,2650.8,5.9940629]
[1750110273063,0.02,2650.9,2650.8,5.95634718]
[1750110276290,0.02,2650.9,2650.8,15.99406013]
[1750110276494,0.02,2650.9,2650.8,15.95634718]
[1750110276976,0.02,2650.9,2650.8,16.50634718]
[1750110280071,0.02,2651.9,2651.7,3.77102362]
[1750110280406,0.02,2651.9,2651.8,6.32]
[1750110280984,0.02,2651.9,2651.8,10.09102345]
[1750110281773,0.02,2651.9,2651.8,6.32]
[1750110282779,0.02,2651.9,2651.7,0.37710236]
[1750110283001,0.02,2651.9,2651.8,6.319]
[1750110284881,0.02,2651.9,2651.8,7.36572389]
[1750110285483,0.02,2651.9,2651.8,6.319]
[1750110289841,0.8488,2651.9,2651.8,6.319]
[1750110293496,0.8488,2651.9,2651.7,3.77113812]
[1750110295339,0.8488,2651.9,2651.6,10.08624294]
[1750110296423,0.8488,2651.9,2651.7,3.77116149]
[1750110298332,0.02,2651.9,2651.8,3.77102345]
[1750110298539,0.02,2651.9,2651.7,3.77108878]
[1750110298737,0.02,2651.9,2651.8,3.77102345]
[1750110299318,0.02,2651.9,2651.8,11.46973467]
[1750110299518,0.02,2651.9,2651.8,10.08402345]
[1750110300998,0.02,2651.9,2651.8,10.83472345]
[1750110304123,0.02,2651.9,2651.8,15.50472345]
[1750110308556,0.02,2651.9,2651.8,27.74172345]
[1750110310222,0.02,2651.9,2651.8,28.12435523]
[1750110310564,0.02,2651.9,2651.8,31.93940177]
[1750110311623,0.80723198,2652.1,2652.0,15.08013906]
[1750110311824,0.02,2652.9,2652.8,4.52900193]
[1750110312026,0.02,2652.9,2652.8,10.83700193]
[1750110312272,0.02,2652.9,2652.8,12.29767418]
[1750110314070,0.02,2652.9,2652.8,11.53827418]
[1750110316174,0.02,2652.9,2652.8,12.31367418]
[1750110317879,0.02,2652.9,2652.8,17.53367418]
[1750110318196,0.02,2652.9,2652.8,16.98367418]
[1750110318537,0.02,2652.9,2652.8,16.98067418]
[1750110319286,0.02,2652.9,2652.8,10.67567418]
[1750110319437,0.02,2652.9,2652.8,16.20527418]
[1750110321850,0.02,2652.9,2652.8,11.53527418]
[1750110324981,0.02,2652.9,2652.6,3.76975806]
[1750110325288,0.02,2652.9,2652.7,10.07172147]
[1750110325590,0.02,2652.9,2652.5,3.77000934]
[1750110325911,0.7803,2652.8,2652.4,3.77013536]
[1750110326114,0.7803,2652.8,2652.4,3.77016428]
[1750110326273,0.7803,2652.7,2651.8,7.58594824]
[1750110326473,0.7803,2652.6,2652.2,3.77036192]
[1750110326702,0.7803,2652.6,2652.3,10.07228727]
[1750110329613,0.7803,2652.6,2652.3,3.77028727]
[1750110329815,0.7803,2652.6,2652.3,10.07128727]
[1750110330914,0.7976,2652.5,2652.1,6.301]
[1750110331151,6.33165711,2652.5,2652.1,6.301]
[1750110331851,0.7976,2652.4,2652.0,3.77061847]
[1750110332154,0.7976,2652.4,2652.0,10.07166958]
[1750110332852,0.7976,2652.4,2652.0,3.77066958]
[1750110333014,0.7976,2652.4,2652.1,3.77059241]
[1750110333440,0.7976,2652.4,2652.3,3.77031255]
[1750110333715,0.7633,2652.6,2652.3,3.77025299]
[1750110333914,1.682,2652.7,2652.3,3.77025299]
[1750110334248,1.682,2652.7,2652.6,3.76988614]
[1750110335049,1.682,2652.7,2652.5,3.76996686]
[1750110335648,1.682,2652.7,2652.5,3.76995847]
[1750110336149,1.682,2652.7,2652.5,6.3]
[1750110336350,1.682,2652.7,2652.6,3.76988614]
[1750110336529,0.02,2652.9,2652.6,3.76988614]
[1750110339157,0.02,2652.9,2652.7,3.76974196]
[1750110339450,0.02,2652.9,2652.8,3.76960193]
[1750110339753,0.02,2652.9,2652.8,10.06860193]
[1750110341532,0.02,2652.9,2652.8,12.28493618]
[1750110342357,0.02,2652.9,2652.8,22.28493618]
[1750110343359,0.02,2652.9,2652.8,22.83493618]
[1750110343531,1.00076394,2653.6,2653.5,4.60110749]
[1750110343725,1.00076394,2653.6,2653.5,10.89810749]
[1750110343925,1.00076394,2653.6,2653.5,12.53299127]
[1750110344257,1.00076394,2653.6,2653.5,13.08299127]
[1750110344565,1.00076394,2653.6,2653.5,8.76438378]
[1750110344720,1.00076394,2653.6,2653.5,6.297]
[1750110344924,1.00076394,2653.6,2653.5,10.89810749]
[1750110346358,1.00076394,2653.6,2653.5,10.06560749]
[1750110350612,1.00076394,2653.6,2653.2,0.8325]
[1750110350815,1.00076394,2653.6,2653.3,10.06281628]
[1750110351290,0.7632,2653.5,2653.3,10.06281628]
[1750110352285,0.7632,2653.5,2653.3,10.06283632]
[1750110353706,1.00076394,2653.6,2653.3,10.06283632]
[1750110355395,0.7632,2653.5,2653.3,10.06283632]
[1750110355974,0.7632,2653.5,2653.0,3.76931775]
[1750110356190,3.76875971,2653.4,2652.9,3.7693867]
[1750110356390,3.76875971,2653.4,2653.0,10.06131753]
[1750110356807,3.76875971,2653.4,2653.0,6.292]
[1750110358222,4.53190937,2653.5,2653.0,10.06131247]
[1750110358421,5.4620263,2653.5,2653.0,10.06131247]
[1750110358785,3.76875037,2653.4,2653.0,10.06131247]
[1750110359117,1.69331693,2653.5,2653.0,10.06131247]
[1750110360126,3.76877533,2653.4,2653.0,10.06131247]
[1750110360319,1.69331693,2653.5,2653.0,6.292]
[1750110360320,5.46199915,2653.5,2653.0,6.292]
[1750110360619,3.76878067,2653.4,2653.0,10.06121626]
[1750110361343,5.46199636,2653.5,2653.0,10.06121626]
[1750110362339,3.76876437,2653.4,2653.0,6.292]
[1750110362518,3.76892752,2653.3,2652.9,3.76939374]
[1750110362843,3.76892752,2653.3,2653.0,6.292]
[1750110364137,3.76905301,2653.2,2652.7,3.76966618]
[1750110364313,3.76905301,2653.2,2652.8,10.06058972]
[1750110364715,0.7516,2653.1,2652.8,10.06058972]
[1750110366816,0.7516,2653.1,2652.9,6.291]
[1750110370125,0.7516,2653.1,2652.8,3.7695925]
[1750110370422,0.7516,2653.1,2652.9,6.29]
[1750110371950,0.7516,2653.1,2652.8,10.0585925]
[1750110372156,0.7516,2653.1,2652.8,7.29485925]
[1750110372525,0.7516,2653.1,2652.8,4.77544554]
[1750110372727,0.7516,2653.1,2652.8,10.05858629]
[1750110373149,0.7516,2653.1,2652.8,6.289]
[1750110373766,3.76939788,2653.0,2652.5,3.76996813]
[1750110373951,0.7516,2653.1,2652.7,6.289]
[1750110373952,4.5207909,2653.1,2652.7,6.289]
[1750110374155,0.7516,2653.1,2652.7,6.289]
[1750110374356,4.60095451,2653.3,2652.8,3.76959538]
[1750110374560,4.60095451,2653.3,2652.8,0.7984]
[1750110375071,3.76904202,2653.2,2652.8,3.76953305]
[1750110375368,4.98609198,2653.3,2652.8,3.76953305]
[1750110377390,0.832,2653.3,2652.9,3.76945359]
[1750110377681,1.00076394,2653.6,2653.4,3.76868227]
[1750110377888,1.00076394,2653.6,2653.5,3.76860749]
[1750110383187,1.00076394,2653.6,2653.5,3.80629055]
[1750110383750,1.00076394,2653.6,2653.5,3.76860749]
[1750110383994,1.00076394,2653.6,2653.5,5.22663079]
[1750110385196,1.00076394,2653.6,2653.5,5.26431299]
[1750110385690,1.00076394,2653.6,2653.5,6.08671299]
[1750110386668,1.00076394,2653.6,2653.5,6.04903079]
[1750110387101,1.00076394,2653.6,2653.5,6.08671285]
[1750110388691,1.00076394,2653.6,2653.5,6.04903079]
[1750110389897,1.00076394,2653.6,2653.5,10.71903079]
[1750110391299,1.00076394,2653.6,2653.5,11.26903079]
[1750110391501,1.00076394,2653.6,2653.5,10.71903079]
[1750110392427,1.00076394,2653.6,2653.5,1.4580233]
[1750110392606,1.00076394,2653.6,2653.4,6.282]
[1750110395045,1.00076394,2653.6,2653.4,6.281]
[1750110395202,1.00076394,2653.6,2653.3,3.768878]
[1750110395530,1.00076394,2653.6,2653.4,6.281]
[1750110396918,1.00076394,2653.6,2653.4,10.04973475]
[1750110397131,1.00076394,2653.6,2653.5,3.76860749]
[1750110397708,1.00076394,2653.6,2653.4,10.04967018]
[1750110397909,1.00076394,2653.6,2653.5,3.76860749]
[1750110398545,1.00076394,2653.6,2653.4,10.04968821]
[1750110399046,1.00076394,2653.6,2653.5,3.76860749]
[1750110399813,1.00076394,2653.6,2653.5,5.93504106]
[1750110400441,1.00076394,2653.6,2653.5,10.64271837]
[1750110400646,1.00076394,2653.6,2653.5,10.60504106]
[1750110402351,1.00076394,2653.6,2653.5,11.15504106]
[1750110407878,1.00076394,2653.6,2653.5,21.15504106]
[1750110408482,0.25019098,2653.6,2653.5,21.15504106]
[1750110412480,0.25019098,2653.6,2653.5,29.09904106]
[1750110418609,0.02,2653.9,2653.5,37.03904106]
[1750110418809,0.02,2654.9,2654.8,3.76676209]
[1750110419025,0.02,2654.9,2654.8,10.03876209]
[1750110420978,0.02,2654.9,2654.8,10.03676209]
[1750110422455,2.43056518,2654.9,2654.8,10.03676209]
[1750110422818,3.19286518,2654.9,2654.8,10.03676209]
[1750110423025,3.19286518,2654.9,2654.7,3.76684816]
[1750110423223,0.7623,2654.8,2654.5,3.76711248]
[1750110423440,0.7623,2654.8,2654.3,3.76745281]
[1750110423441,2.43056518,2654.9,2654.6,10.07466346]
[1750110423785,3.19286518,2654.9,2654.8,3.76676209]
[1750110423938,2.43056518,2654.9,2654.8,10.03576209]
[1750110424971,2.43056518,2654.9,2654.8,10.58576209]
[1750110425264,2.43056518,2654.9,2654.8,5.8315387]
[1750110425474,2.43056518,2654.9,2654.8,12.1005387]
[1750110426234,2.43056518,2654.9,2654.8,12.48417724]
[1750110427231,2.43056518,2654.9,2654.8,22.48417724]
[1750110429168,2.43056518,2654.9,2654.8,15.2815387]
[1750110429366,2.43056518,2654.9,2654.8,21.5495387]
[1750110430841,2.43056518,2654.9,2654.8,11.5495387]
[1750110431372,2.43056518,2654.9,2654.8,16.2185387]
[1750110432244,2.43056518,2654.9,2654.8,12.9219387]
[1750110432449,2.43056518,2654.9,2654.8,22.9219387]
[1750110437306,2.43056518,2654.9,2654.8,27.5919387]
[1750110442792,1.7849463,2654.9,2654.8,27.5919387]
[1750110443100,1.28293015,2654.9,2654.8,27.5919387]
[1750110443297,0.36082409,2654.9,2654.8,27.5919387]
[1750110443513,1.1942959,2655.1,2655.0,4.58607834]
[1750110443721,1.1942959,2655.1,2655.0,23.81578025]
[1750110444011,1.1942959,2655.1,2655.0,23.7781285]
[1750110444367,1.1942959,2655.1,2655.0,24.3281285]
[1750110446073,1.1942959,2655.1,2655.0,28.9981285]
[1750110449304,1.1942959,2655.1,2655.0,13.0245285]
[1750110449504,1.1942959,2655.1,2655.0,19.2875285]
[1750110449705,1.1942959,2655.1,2655.0,10.09747834]
[1750110449905,1.1942959,2655.1,2655.0,11.69047834]
[1750110450675,1.1942959,2655.1,2655.0,22.24047834]
[1750110454891,1.1942959,2655.1,2655.0,26.91047834]
[1750110455404,1.1942959,2655.1,2655.0,14.71347834]
[1750110455805,1.1942959,2655.1,2655.0,8.43647834]
[1750110456014,1.1942959,2655.1,2655.0,14.71847834]
[1750110457418,1.1942959,2655.1,2655.0,24.71847834]
[1750110457718,1.1942959,2655.1,2655.0,28.10976177]
[1750110459522,1.1942959,2655.1,2655.0,14.71847834]
[1750110460585,1.1942959,2655.1,2655.0,14.70847834]
[1750110467226,1.1942959,2655.1,2655.0,10.03847834]
[1750110472039,1.1942959,2655.1,2655.0,3.76647834]
[1750110472338,1.1942959,2655.1,2655.0,11.69147834]
[1750110472536,1.1942959,2655.1,2655.0,13.61396177]
[1750110482447,1.1942959,2655.1,2655.0,14.36986177]
[1750110487532,1.1942959,2655.1,2655.0,13.61396177]
[1750110490473,1.1942959,2655.1,2655.0,18.28396177]
[1750110493967,1.1942959,2655.1,2655.0,13.61396177]
[1750110495755,1.1942959,2655.1,2655.0,14.16396177]
[1750110496881,1.1942959,2655.1,2655.0,24.99676177]
[1750110499283,1.1942959,2655.1,2655.0,29.66676177]
[1750110500782,0.8133,2655.9,2655.8,3.76534377]
[1750110501082,0.8133,2655.9,2655.8,10.02634377]
[1750110504152,0.02,2655.9,2655.8,10.02634377]
[1750110513921,0.8374,2655.9,2655.8,3.76534377]
[1750110514120,0.02,2655.9,2655.8,10.02334377]
[1750110519462,0.02,2655.9,2655.8,10.82324377]
[1750110519766,0.02,2655.9,2655.8,12.44811403]
[1750110520066,0.02,2655.9,2655.8,22.44811403]
[1750110520566,0.02,2655.9,2655.8,21.64821403]
[1750110520763,0.02,2655.9,2655.8,22.19821403]